[Event "EYCC Open-U14 2019"]
[Site "Bratislava"]
[Date "2019.08.04"]
[Round "3.17"]
[White "Makoveev, Ilya"]
[Black "Ochedzan, Tymon"]
[Result "1-0"]
[ECO "B90"]
[WhiteElo "2288"]
[BlackElo "2037"]
[Annotator "NA"]
[PlyCount "123"]
[EventDate "2019.08.02"]
[EventType "swiss"]
[EventCountry "SVK"]
[SourceTitle "playchess.com"]
[Source "ChessBase"]
[SourceQuality "1"]
[TimeControl "40/5400+30:1800+30"]

1. e4 {[%emt 0:00:00]} c5 {[%emt 0:00:00]} 2. Nf3 {[%emt 0:00:00]} d6 {[%emt 0:00:00]} 3. d4 {[%emt 0:00:00]} cxd4 {[%emt 0:00:00]} 4. Nxd4 {[%emt 0:00:14]} Nf6 {[%emt 0:00:12]} 5. Nc3 {[%emt 0:00:24]} a6 {[%emt 0:00:09]} 6. f3 {[%emt 0:00:32]} e5 {[%emt 0:01:11]} 7. Nb3 {[%emt 0:00:21]} Be6 {[%emt 0:00:18]} 8. Be3 {[%emt 0:00:29]} h5 {[%emt 0:01:39]} 9. Qd2 {[%emt 0:01:00]} Nbd7 {[%emt 0:02:39]} 10. O-O-O {[%emt 0:00:30]} Be7 {[%emt 0:03:50]} 11. Kb1 {[%emt 0:01:30]} Rc8 {[%emt 0:02:24]} 12. h3 {[%emt 0:01:00]} b5 {[%emt 0:03:40]} 13. Bd3 {[%emt 0:01:00]} h4 {[%emt 0:01:27]} 14. f4 {[%emt 0:00:50]} Qc7 {[%emt 0:07:29]} 15. Rhe1 {[%emt 0:14:46]} Bc4 {[%emt 0:08:40]} 16. a3 {[%emt 0:18:07]} Bxd3 {[%emt 0:14:55]} 17. cxd3 {[%emt 0:03:53]} b4 {[%emt 0:08:08]} 18. axb4 {[%emt 0:00:54]} Qb7 {[%emt 0:03:18]} 19. Na2 {[%emt 0:08:37]} O-O {[%emt 0:01:50]} 20. Rc1 {[%emt 0:10:14]} d5 {[%emt 0:07:13]} 21. fxe5 {[%emt 0:04:22]} Nxe5 {[%emt 0:01:19]} 22. Bd4 {[%emt 0:02:03]} Nfd7 {[%emt 0:06:16]} 23. Nc5 {[%emt 0:02:34]} Qb5 {[%emt 0:03:07]} 24. exd5 {[%emt 0:07:55]} Bxc5 {[%emt 0:04:03]} 25. bxc5 {[%emt 0:02:31]} Nxd3 {[%emt 0:03:12]} 26. Nc3 {[%emt 0:03:53]} Qc4 {[%emt 0:00:36]} 27. Bxg7 {[%emt 0:01:11]} Nxe1 {[%emt 0:05:47]} 28. Qh6 {[%emt 0:09:39]} Qd3+ {[%emt 0:01:38]} 29. Ka2 {[%emt 0:00:17]} Qh7 {[%emt 0:00:48]} 30. Bxf8 {[%emt 0:01:31]} Qxh6 {[%emt 0:01:25]} 31. Bxh6 {[%emt 0:00:09]} Nd3 {[%emt 0:00:14]} 32. Rd1 {[%emt 0:01:41]} N7xc5 {[%emt 0:00:43]} 33. Bg5 {[%emt 0:01:46]} Rb8 {[%emt 0:01:59]} 34. Rd2 {[%emt 0:00:16]} f6 {[%emt 0:01:58]} 35. Be3 {[%emt 0:01:53]} Nb4+ {[%emt 0:01:13]} 36. Kb1 {[%emt 0:00:46]} Ncd3 {[%emt 0:00:33]} 37. Na2 {[%emt 0:01:05]} Rd8 {[%emt 0:02:23]} 38. Nxb4 {[%emt 0:00:33]} Nxb4 {[%emt 0:00:04]} 39. d6 {[%emt 0:00:07]} Kf7 {[%emt 0:00:33]} 40. Bf2 {[%emt 0:00:00]} Ke6 {[%emt 0:00:00]} 41. Bxh4 {[%emt 0:01:37]} Nd5 {[%emt 0:07:09]} 42. Bg3 {[%emt 0:00:15]} Rg8 {[%emt 0:02:42]} 43. Bh2 {[%emt 0:00:39]} f5 {[%emt 0:00:38]} 44. Kc2 {[%emt 0:17:38]} Rxg2 {[%emt 0:06:10]} 45. Rxg2 {[%emt 0:00:41]} Ne3+ {[%emt 0:00:06]} 46. Kd3 {[%emt 0:00:09]} Nxg2 {[%emt 0:00:09]} 47. Bg3 {[%emt 0:00:10]} f4 {[%emt 0:06:44]} 48. Bf2 {[%emt 0:00:09]} Kxd6 {[%emt 0:01:00]} 49. Ke4 {[%emt 0:00:09]} Kc6 {[%emt 0:01:19]} 50. Kf3 {[%emt 0:00:15]} Ne3 {[%emt 0:00:14]} 51. Bxe3 {[%emt 0:00:04]} fxe3 {[%emt 0:00:07]} 52. Kxe3 {[%emt 0:00:02]} Kc5 {[%emt 0:00:17]} 53. Ke4 {[%emt 0:00:48]} Kc4 {[%emt 0:00:53]} 54. h4 {[%emt 0:00:03]} a5 {[%emt 0:00:37]} 55. h5 {[%emt 0:00:03]} a4 {[%emt 0:00:13]} 56. h6 {[%emt 0:00:03]} Kb3 {[%emt 0:00:04]} 57. h7 {[%emt 0:00:03]} Kxb2 {[%emt 0:00:07]} 58. h8=Q+ {[%emt 0:00:06]} Ka2 {[%emt 0:00:31]} 59. Kd3 {[%emt 0:00:06]} a3 {[%emt 0:00:04]} 60. Qb8 {[%emt 0:00:15]} Ka1 {[%emt 0:00:05]} 61. Kc2 {[%emt 0:00:24]} a2 {[%emt 0:00:06]} 62. Qh8# {[%emt 0:00:19]} 1-0

[Event "EYCC Open-U14 2019"]
[Site "Bratislava"]
[Date "2019.08.04"]
[Round "3.18"]
[White "Antonica, Dragos-Andrei"]
[Black "Frank, Adam"]
[Result "1-0"]
[ECO "A80"]
[WhiteElo "2124"]
[BlackElo "2125"]
[Annotator "NA"]
[PlyCount "81"]
[EventDate "2019.08.02"]
[EventType "swiss"]
[EventCountry "SVK"]
[SourceTitle "playchess.com"]
[Source "ChessBase"]
[SourceQuality "1"]
[TimeControl "40/5400+30:1800+30"]

1. d4 {[%emt 0:00:00]} f5 {[%emt 0:00:00]} 2. Nc3 {[%emt 0:00:00]} d5 {[%emt 0:00:00]} 3. Bf4 {[%emt 0:00:00]} Nf6 {[%emt 0:00:52]} 4. e3 {[%emt 0:00:04]} e6 {[%emt 0:01:09]} 5. Nf3 {[%emt 0:00:31]} Be7 {[%emt 0:00:41]} 6. Bd3 {[%emt 0:01:33]} c6 {[%emt 0:02:03]} 7. O-O {[%emt 0:03:37]} O-O {[%emt 0:01:16]} 8. Ne2 {[%emt 0:03:39]} Nbd7 {[%emt 0:12:21]} 9. c4 {[%emt 0:07:05]} Ne4 {[%emt 0:10:29]} 10. Ne5 {[%emt 0:04:53]} Nxe5 {[%emt 0:08:26]} 11. Bxe5 {[%emt 0:05:44]} Bd7 {[%emt 0:07:04]} 12. b4 {[%emt 0:26:09]} a5 {[%emt 0:12:05]} 13. a3 {[%emt 0:20:31]} axb4 {[%emt 0:17:45]} 14. axb4 {[%emt 0:00:02]} Rxa1 {[%emt 0:02:36]} 15. Qxa1 {[%emt 0:00:07]} Nd2 {[%emt 0:00:20]} 16. cxd5 {[%emt 0:16:43]} Nxf1 {[%emt 0:02:38]} 17. d6 {[%emt 0:00:02]} Bf6 {[%emt 0:00:15]} 18. Kxf1 {[%emt 0:03:03]} Qa8 {[%emt 0:02:40]} 19. Qc3 {[%emt 0:00:20]} Qa7 {[%emt 0:06:51]} 20. g4 {[%emt 0:05:13]} fxg4 {[%emt 0:06:36]} 21. Nf4 {[%emt 0:00:14]} Ra8 {[%emt 0:00:41]} 22. Kg2 {[%emt 0:00:49]} Qa1 {[%emt 0:00:42]} 23. Qc2 {[%emt 0:00:30]} Ra2 {[%emt 0:00:51]} 24. Bxh7+ {[%emt 0:00:34]} Kf8 25. Qe4 {[%emt 0:00:30]} Qd1 {[%emt 0:02:48]} 26. Ng6+ {[%emt 0:00:30]} Ke8 {[%emt 0:00:03]} 27. Bxf6 {[%emt 0:00:34]} Qf3+ {[%emt 0:00:35]} 28. Qxf3 {[%emt 0:00:02]} gxf3+ {[%emt 0:00:04]} 29. Kxf3 {[%emt 0:00:04]} gxf6 {[%emt 0:00:03]} 30. Nf4 {[%emt 0:00:19]} Kf7 {[%emt 0:00:51]} 31. Nd3 {[%emt 0:00:46]} Kg7 32. Nc5 {[%emt 0:00:07]} Kxh7 {[%emt 0:01:30]} 33. Nxd7 {[%emt 0:00:06]} Kg7 {[%emt 0:00:12]} 34. Nc5 {[%emt 0:00:20]} Kf7 {[%emt 0:00:36]} 35. Nxb7 {[%emt 0:00:19]} Ke8 {[%emt 0:00:40]} 36. Nc5 {[%emt 0:00:36]} Rb2 {[%emt 0:00:48]} 37. e4 {[%emt 0:02:04]} Rxb4 {[%emt 0:00:47]} 38. Ke3 {[%emt 0:00:41]} e5 {[%emt 0:00:46]} 39. dxe5 {[%emt 0:00:32]} fxe5 {[%emt 0:00:03]} 40. Nd3 {[%emt 0:00:00]} Kd7 {[%emt 0:00:00]} 41. Nxb4 {[%emt 0:00:42]} 1-0

[Event "EYCC Open-U14 2019"]
[Site "Bratislava"]
[Date "2019.08.04"]
[Round "3.19"]
[White "Tsaruk, Maksim"]
[Black "Brnusak, Tomas"]
[Result "1-0"]
[ECO "B91"]
[WhiteElo "2230"]
[BlackElo "2032"]
[Annotator "NA"]
[PlyCount "169"]
[EventDate "2019.08.02"]
[EventType "swiss"]
[EventCountry "SVK"]
[SourceTitle "playchess.com"]
[Source "ChessBase"]
[SourceQuality "1"]
[TimeControl "40/5400+30:1800+30"]

1. e4 {[%emt 0:00:00]} c5 {[%emt 0:00:31]} 2. Nf3 {[%emt 0:00:00]} d6 {[%emt 0:00:30]} 3. d4 {[%emt 0:00:00]} cxd4 {[%emt 0:00:35]} 4. Nxd4 {[%emt 0:00:00]} Nf6 {[%emt 0:01:01]} 5. Nc3 {[%emt 0:00:00]} a6 {[%emt 0:00:50]} 6. g3 {[%emt 0:00:03]} e5 {[%emt 0:00:36]} 7. Nde2 {[%emt 0:00:06]} Be7 {[%emt 0:01:04]} 8. Bg2 {[%emt 0:00:22]} O-O {[%emt 0:01:00]} 9. O-O {[%emt 0:00:31]} b5 {[%emt 0:00:44]} 10. Nd5 {[%emt 0:01:46]} Nxd5 {[%emt 0:02:19]} 11. Qxd5 {[%emt 0:00:43]} Ra7 {[%emt 0:00:26]} 12. Be3 {[%emt 0:10:23]} Be6 {[%emt 0:00:54]} 13. Qd2 {[%emt 0:00:27]} Rb7 {[%emt 0:00:59]} 14. Nc3 {[%emt 0:23:26]} Nd7 {[%emt 0:06:11]} 15. Nd5 {[%emt 0:03:59]} Bxd5 {[%emt 0:03:55]} 16. Qxd5 {[%emt 0:16:37]} Qc7 {[%emt 0:02:43]} 17. Rfd1 {[%emt 0:03:41]} Nb6 {[%emt 0:01:54]} 18. Qd3 {[%emt 0:00:36]} Nc4 {[%emt 0:06:30]} 19. Bc1 {[%emt 0:00:12]} Qc5 {[%emt 0:01:24]} 20. b3 {[%emt 0:04:28]} Nb6 {[%emt 0:00:42]} 21. Be3 {[%emt 0:00:42]} Qc6 {[%emt 0:00:22]} 22. Bh3 {[%emt 0:03:21]} Rc7 {[%emt 0:05:06]} 23. a4 {[%emt 0:02:02]} Nd7 {[%emt 0:04:33]} 24. axb5 {[%emt 0:01:49]} axb5 {[%emt 0:00:18]} 25. Qd5 {[%emt 0:02:37]} Nc5 {[%emt 0:03:26]} 26. Qxc6 {[%emt 0:01:08]} Rxc6 {[%emt 0:00:12]} 27. Ra7 {[%emt 0:13:06]} Bd8 {[%emt 0:05:11]} 28. Bxc5 {[%emt 0:02:18]} Rxc5 {[%emt 0:01:10]} 29. Rxd6 {[%emt 0:02:37]} Rxc2 {[%emt 0:00:07]} 30. Bf1 {[%emt 0:04:45]} Rc3 {[%emt 0:02:19]} 31. b4 {[%emt 0:02:02]} Rb3 {[%emt 0:01:18]} 32. Rad7 {[%emt 0:00:05]} Bf6 {[%emt 0:01:27]} 33. Bxb5 {[%emt 0:00:26]} Rxb4 {[%emt 0:00:42]} 34. Bc6 {[%emt 0:00:21]} Rb6 {[%emt 0:03:22]} 35. Bd5 {[%emt 0:01:35]} Rxd6 {[%emt 0:00:11]} 36. Rxd6 {[%emt 0:00:05]} Rd8 {[%emt 0:00:36]} 37. Rc6 {[%emt 0:00:21]} Kf8 {[%emt 0:01:20]} 38. Rc7 {[%emt 0:00:05]} Be7 {[%emt 0:00:08]} 39. Kg2 {[%emt 0:00:27]} Rd6 {[%emt 0:01:03]} 40. Kf3 {[%emt 0:00:00]} Rf6+ {[%emt 0:00:00]} 41. Ke2 {[%emt 0:01:36]} Bd6 {[%emt 0:07:58]} 42. Rc8+ {[%emt 0:01:48]} Ke7 {[%emt 0:00:09]} 43. Rh8 {[%emt 0:00:14]} h6 {[%emt 0:00:28]} 44. Rc8 {[%emt 0:00:56]} Kd7 {[%emt 0:00:34]} 45. Rg8 {[%emt 0:02:20]} g5 {[%emt 0:00:36]} 46. f3 {[%emt 0:02:47]} Bc7 {[%emt 0:02:21]} 47. Kf2 {[%emt 0:02:31]} Bd8 {[%emt 0:02:19]} 48. Kg2 {[%emt 0:00:57]} Ke7 {[%emt 0:03:53]} 49. Rh8 {[%emt 0:00:31]} Ba5 {[%emt 0:02:25]} 50. Bb7 {[%emt 0:06:01]} Rb6 {[%emt 0:04:59]} 51. Bd5 {[%emt 0:00:04]} Rf6 {[%emt 0:00:09]} 52. Ra8 {[%emt 0:00:14]} Bb6 {[%emt 0:00:35]} 53. Rb8 {[%emt 0:01:13]} Bc7 {[%emt 0:00:51]} 54. Rb7 {[%emt 0:00:19]} Kd7 {[%emt 0:00:34]} 55. Ra7 {[%emt 0:00:06]} Kd8 {[%emt 0:01:18]} 56. Bc4 {[%emt 0:01:20]} Kc8 {[%emt 0:02:30]} 57. Ra8+ {[%emt 0:01:59]} Kd7 {[%emt 0:00:16]} 58. Bb5+ {[%emt 0:00:32]} Ke7 {[%emt 0:00:49]} 59. Re8+ {[%emt 0:00:10]} Kd6 {[%emt 0:00:06]} 60. Ba4 {[%emt 0:06:30]} Bb6 {[%emt 0:00:59]} 61. Rb8 {[%emt 0:00:29]} Kc7 {[%emt 0:00:41]} 62. Re8 {[%emt 0:01:30]} Kd6 {[%emt 0:00:06]} 63. Bb3 {[%emt 0:00:03]} Bc7 {[%emt 0:00:35]} 64. Bd5 {[%emt 0:03:04]} Kd7 {[%emt 0:00:22]} 65. Rh8 {[%emt 0:00:04]} Ke7 {[%emt 0:00:21]} 66. Kh3 {[%emt 0:00:05]} Rxf3 {[%emt 0:00:15]} 67. Rxh6 {[%emt 0:00:04]} Rf6 {[%emt 0:00:59]} 68. Rh8 {[%emt 0:00:12]} Rg6 {[%emt 0:03:06]} 69. Rh7 {[%emt 0:00:10]} Rf6 {[%emt 0:00:04]} 70. Kg4 {[%emt 0:00:03]} Ba5 {[%emt 0:00:09]} 71. Kxg5 {[%emt 0:00:06]} Bd2+ {[%emt 0:00:14]} 72. Kg4 {[%emt 0:00:03]} Rg6+ {[%emt 0:00:07]} 73. Kf3 {[%emt 0:00:07]} Rf6+ {[%emt 0:00:06]} 74. Kg2 {[%emt 0:00:21]} Kf8 {[%emt 0:00:07]} 75. Rh8+ {[%emt 0:00:44]} Kg7 {[%emt 0:00:07]} 76. Re8 {[%emt 0:00:07]} Bc3 {[%emt 0:00:05]} 77. h4 {[%emt 0:00:02]} Bd4 {[%emt 0:00:12]} 78. Re7 {[%emt 0:01:21]} Kg6 {[%emt 0:00:32]} 79. Kh3 {[%emt 0:02:09]} Rf2 {[%emt 0:00:10]} 80. Kg4 {[%emt 0:00:35]} Kf6 {[%emt 0:00:47]} 81. Rxf7+ {[%emt 0:00:06]} Kg6 {[%emt 0:00:05]} 82. Rxf2 {[%emt 0:01:05]} Bxf2 {[%emt 0:00:04]} 83. Kh3 {[%emt 0:00:03]} Be3 {[%emt 0:00:22]} 84. g4 {[%emt 0:00:05]} Bf4 {[%emt 0:02:12]} 85. g5 {[%emt 0:00:18]} 1-0

[Event "EYCC Open-U14 2019"]
[Site "Bratislava"]
[Date "2019.08.04"]
[Round "3.20"]
[White "Bochnicka, Vladimir"]
[Black "Neumann, Filip"]
[Result "1/2-1/2"]
[ECO "C48"]
[WhiteElo "2169"]
[BlackElo "1982"]
[Annotator "NA"]
[PlyCount "65"]
[EventDate "2019.08.02"]
[EventType "swiss"]
[EventCountry "SVK"]
[SourceTitle "playchess.com"]
[Source "ChessBase"]
[SourceQuality "1"]
[TimeControl "40/5400+30:1800+30"]

1. e4 {[%emt 0:00:00]} e5 {[%emt 0:00:00]} 2. Nf3 {[%emt 0:00:00]} Nf6 {[%emt 0:00:00]} 3. Nc3 {[%emt 0:01:18]} Nc6 {[%emt 0:01:04]} 4. Bb5 {[%emt 0:00:06]} d6 {[%emt 0:06:09]} 5. d4 {[%emt 0:02:41]} exd4 {[%emt 0:00:40]} 6. Nxd4 {[%emt 0:00:15]} Bd7 {[%emt 0:00:53]} 7. Bxc6 {[%emt 0:00:17]} bxc6 {[%emt 0:02:05]} 8. O-O {[%emt 0:01:06]} Be7 {[%emt 0:02:43]} 9. f4 {[%emt 0:02:30]} O-O {[%emt 0:11:08]} 10. h3 {[%emt 0:14:56]} Re8 {[%emt 0:02:30]} 11. e5 {[%emt 0:18:21]} Nd5 {[%emt 0:06:36]} 12. Qf3 {[%emt 0:13:31]} dxe5 {[%emt 0:10:30]} 13. fxe5 {[%emt 0:00:34]} Bc5 {[%emt 0:02:04]} 14. Qxf7+ {[%emt 0:19:32]} Kh8 {[%emt 0:00:16]} 15. Nxd5 {[%emt 0:00:49]} Bxd4+ {[%emt 0:00:41]} 16. Be3 {[%emt 0:01:49]} Be6 {[%emt 0:04:23]} 17. Qf4 {[%emt 0:05:09]} Bxb2 {[%emt 0:03:12]} 18. Rab1 {[%emt 0:01:30]} Bxe5 {[%emt 0:01:20]} 19. Qxe5 {[%emt 0:00:10]} Bxd5 {[%emt 0:00:25]} 20. Qg3 {[%emt 0:00:15]} Bxa2 {[%emt 0:11:01]} 21. Rb7 {[%emt 0:03:53]} Bc4 {[%emt 0:15:39]} 22. Rf4 {[%emt 0:05:43]} Qe7 {[%emt 0:05:43]} 23. Rxc4 {[%emt 0:04:22]} Qxe3+ {[%emt 0:00:07]} 24. Qxe3 {[%emt 0:00:01]} Rxe3 {[%emt 0:00:02]} 25. Rxc6 {[%emt 0:00:17]} Re7 {[%emt 0:00:10]} 26. Ra6 {[%emt 0:00:15]} Kg8 {[%emt 0:00:08]} 27. Raxa7 {[%emt 0:00:11]} Rxa7 {[%emt 0:00:05]} 28. Rxa7 {[%emt 0:00:06]} Kf7 {[%emt 0:00:03]} 29. Kf2 {[%emt 0:00:10]} Ke8 {[%emt 0:01:13]} 30. Ra3 {[%emt 0:01:19]} Kd7 {[%emt 0:00:20]} 31. Re3 {[%emt 0:02:10]} Rf7+ {[%emt 0:00:16]} 32. Ke2 {[%emt 0:00:07]} Kd6 {[%emt 0:00:24]} 33. Kd3 {[%emt 0:01:22] Ke5 Ke4+} 1/2-1/2

[Event "EYCC Open-U14 2019"]
[Site "Bratislava"]
[Date "2019.08.04"]
[Round "3.21"]
[White "Andrijashkin, Deniss"]
[Black "Shoshin, Kirill"]
[Result "1/2-1/2"]
[ECO "A46"]
[WhiteElo "1862"]
[BlackElo "2089"]
[Annotator "NA"]
[PlyCount "76"]
[EventDate "2019.08.02"]
[EventType "swiss"]
[EventCountry "SVK"]
[SourceTitle "playchess.com"]
[Source "ChessBase"]
[SourceQuality "1"]
[TimeControl "40/5400+30:1800+30"]

1. d4 {[%emt 0:00:00]} Nf6 {[%emt 0:00:00]} 2. Nf3 {[%emt 0:00:00]} d5 {[%emt 0:00:00]} 3. g3 {[%emt 0:00:00]} e6 {[%emt 0:00:00]} 4. Bg2 {[%emt 0:01:16]} c5 {[%emt 0:00:00]} 5. O-O {[%emt 0:00:08]} Nc6 {[%emt 0:00:05]} 6. c4 {[%emt 0:00:16]} dxc4 {[%emt 0:00:02]} 7. Qa4 {[%emt 0:00:06]} Bd7 {[%emt 0:00:09]} 8. Qxc4 {[%emt 0:00:10]} b5 {[%emt 0:00:01]} 9. Qd3 {[%emt 0:00:50]} Rc8 {[%emt 0:00:10]} 10. dxc5 {[%emt 0:00:10]} Bxc5 {[%emt 0:03:25]} 11. Nc3 {[%emt 0:00:08]} Nb4 {[%emt 0:04:54]} 12. Qd2 {[%emt 0:00:14]} Qb6 {[%emt 0:04:42]} 13. Ne5 {[%emt 0:12:50]} Bd4 {[%emt 0:08:21]} 14. Nxd7 {[%emt 0:01:47]} Nxd7 {[%emt 0:00:28]} 15. Ne4 {[%emt 0:28:41]} a5 {[%emt 0:05:47]} 16. Rd1 {[%emt 0:11:24]} e5 {[%emt 0:11:26]} 17. Qg5 {[%emt 0:05:00]} O-O {[%emt 0:09:30]} 18. e3 {[%emt 0:00:20]} f5 {[%emt 0:00:42]} 19. exd4 {[%emt 0:15:42]} fxe4 {[%emt 0:00:19]} 20. Be3 {[%emt 0:04:14]} Nc2 {[%emt 0:12:55]} 21. dxe5 {[%emt 0:01:18]} Qe6 {[%emt 0:00:58]} 22. Bxe4 {[%emt 0:02:57]} Nxe5 {[%emt 0:01:12]} 23. Bf4 {[%emt 0:06:27]} Rc5 {[%emt 0:03:53]} 24. Rd5 {[%emt 0:04:35]} Nf7 {[%emt 0:04:23]} 25. Rxc5 {[%emt 0:03:22]} Qxe4 {[%emt 0:00:00]} 26. Qd5 {[%emt 0:00:33]} Qxd5 {[%emt 0:00:36]} 27. Rxd5 {[%emt 0:00:04]} Nxa1 {[%emt 0:00:02]} 28. Rxb5 {[%emt 0:00:08]} Nc2 {[%emt 0:02:04]} 29. Rxa5 {[%emt 0:00:04]} Nd4 {[%emt 0:00:10]} 30. Be3 {[%emt 0:00:57]} Nf3+ {[%emt 0:01:36]} 31. Kg2 {[%emt 0:00:14]} N7e5 {[%emt 0:01:25]} 32. b3 {[%emt 0:01:02]} Rd8 {[%emt 0:02:07]} 33. Rc5 {[%emt 0:00:56]} Rd1 {[%emt 0:01:00]} 34. Rc1 {[%emt 0:00:20]} Ne1+ {[%emt 0:01:18]} 35. Kf1 {[%emt 0:00:34]} Rxc1 {[%emt 0:00:34]} 36. Bxc1 {[%emt 0:00:03]} N1d3 {[%emt 0:00:33]} 37. Be3 {[%emt 0:01:05]} Nb4 {[%emt 0:01:29]} 38. a4 {[%emt 0:00:23]} Kf7 {[%emt 0:00:45]} 1/2-1/2

[Event "EYCC Open-U14 2019"]
[Site "Bratislava"]
[Date "2019.08.04"]
[Round "3.22"]
[White "Jun, Rudolf Jr."]
[Black "Vaupot, Luka"]
[Result "1-0"]
[ECO "C05"]
[WhiteElo "2200"]
[BlackElo "1939"]
[Annotator "NA"]
[PlyCount "51"]
[EventDate "2019.08.02"]
[EventType "swiss"]
[EventCountry "SVK"]
[SourceTitle "playchess.com"]
[Source "ChessBase"]
[SourceQuality "1"]
[TimeControl "40/5400+30:1800+30"]

1. e4 {[%emt 0:00:00]} e6 {[%emt 0:00:00]} 2. d4 {[%emt 0:00:00]} d5 {[%emt 0:00:00]} 3. Nd2 {[%emt 0:00:31]} Nf6 {[%emt 0:00:03]} 4. Bd3 {[%emt 0:01:23]} c5 {[%emt 0:02:09]} 5. exd5 {[%emt 0:07:10]} Qxd5 {[%emt 0:12:50]} 6. Ngf3 {[%emt 0:00:33]} cxd4 {[%emt 0:02:17]} 7. O-O {[%emt 0:01:58]} Be7 {[%emt 0:10:28]} 8. Bc4 {[%emt 0:06:17]} Qd6 {[%emt 0:09:33]} 9. Nb3 {[%emt 0:03:14]} e5 {[%emt 0:00:38]} 10. Qe1 {[%emt 0:09:33]} Nbd7 {[%emt 0:11:46]} 11. Ng5 {[%emt 0:03:16]} O-O {[%emt 0:00:32]} 12. f4 {[%emt 0:00:48]} h6 {[%emt 0:13:36]} 13. Nf3 {[%emt 0:01:15]} e4 {[%emt 0:03:05]} 14. Nfxd4 {[%emt 0:00:48]} Nb6 {[%emt 0:01:48]} 15. Be2 {[%emt 0:01:40]} a5 {[%emt 0:02:33]} 16. Nb5 {[%emt 0:03:06]} Qc6 {[%emt 0:01:41]} 17. Kh1 {[%emt 0:06:37]} Qxc2 {[%emt 0:04:22]} 18. N3d4 {[%emt 0:00:44]} Qc5 {[%emt 0:00:29]} 19. Nb3 {[%emt 0:05:21]} Qc6 {[%emt 0:05:23]} 20. Nxa5 {[%emt 0:01:14]} Qc2 {[%emt 0:01:04]} 21. Nd4 {[%emt 0:05:03]} Qc7 {[%emt 0:00:51]} 22. Bd2 {[%emt 0:00:57]} Nfd5 {[%emt 0:02:40]} 23. Rc1 {[%emt 0:01:16]} Qd8 {[%emt 0:01:25]} 24. Nc4 {[%emt 0:04:48]} Nxf4 {[%emt 0:03:11]} 25. Bxf4 {[%emt 0:02:31]} Qxd4 {[%emt 0:00:06]} 26. Be3 1-0

[Event "EYCC Open-U14 2019"]
[Site "Bratislava"]
[Date "2019.08.04"]
[Round "3.23"]
[White "Chyzy, Jakub"]
[Black "Meskenas, Paulius"]
[Result "1-0"]
[ECO "C47"]
[WhiteElo "2093"]
[BlackElo "2040"]
[Annotator "NA"]
[PlyCount "81"]
[EventDate "2019.08.02"]
[EventType "swiss"]
[EventCountry "SVK"]
[SourceTitle "playchess.com"]
[Source "ChessBase"]
[SourceQuality "1"]
[TimeControl "40/5400+30:1800+30"]

1. e4 {[%emt 0:00:00]} e5 {[%emt 0:00:00]} 2. Nf3 {[%emt 0:00:00]} Nc6 {[%emt 0:00:00]} 3. Nc3 {[%emt 0:00:00]} Nf6 {[%emt 0:00:00]} 4. a3 {[%emt 0:00:00]} Bc5 {[%emt 0:03:25]} 5. Nxe5 {[%emt 0:00:00]} Nxe5 {[%emt 0:00:40]} 6. d4 {[%emt 0:00:00]} Bd6 {[%emt 0:00:12]} 7. f4 {[%emt 0:00:13]} Neg4 {[%emt 0:03:23]} 8. e5 {[%emt 0:02:04]} Be7 {[%emt 0:00:06]} 9. exf6 {[%emt 0:09:05]} Nxf6 {[%emt 0:00:07]} 10. Bd3 {[%emt 0:00:40]} d5 {[%emt 0:00:31]} 11. O-O {[%emt 0:00:48]} Bg4 {[%emt 0:08:07]} 12. Qe1 {[%emt 0:02:49]} Qd7 {[%emt 0:00:36]} 13. h3 {[%emt 0:02:47]} Bf5 {[%emt 0:01:09]} 14. Bxf5 {[%emt 0:02:04]} Qxf5 {[%emt 0:00:18]} 15. Qe5 {[%emt 0:00:05]} Qd7 {[%emt 0:01:59]} 16. Re1 {[%emt 0:02:31]} Kd8 {[%emt 0:01:45]} 17. Qe2 {[%emt 0:05:41]} Re8 {[%emt 0:00:53]} 18. Qf3 {[%emt 0:01:16]} c6 {[%emt 0:00:29]} 19. f5 {[%emt 0:01:34]} Kc8 {[%emt 0:01:56]} 20. Be3 {[%emt 0:09:51]} b6 {[%emt 0:06:50]} 21. b4 {[%emt 0:05:06]} Kb7 {[%emt 0:02:42]} 22. b5 {[%emt 0:09:28]} cxb5 {[%emt 0:02:04]} 23. Bg5 {[%emt 0:09:51]} h6 {[%emt 0:05:39]} 24. Bf4 {[%emt 0:24:27]} Rac8 {[%emt 0:01:11]} 25. Re5 {[%emt 0:06:38]} Red8 {[%emt 0:06:01]} 26. Rae1 {[%emt 0:01:52]} Bd6 {[%emt 0:02:08]} 27. Nxd5 {[%emt 0:01:43]} Bxe5 {[%emt 0:03:00]} 28. Nb4+ {[%emt 0:00:26]} Rc6 {[%emt 0:00:43]} 29. dxe5 {[%emt 0:01:39]} Ne8 {[%emt 0:03:33]} 30. e6 {[%emt 0:00:56]} Qd4+ 31. Kh1 {[%emt 0:00:49]} Qc3 {[%emt 0:09:05]} 32. Nxc6 {[%emt 0:00:42]} Qxc6 {[%emt 0:00:06]} 33. exf7 {[%emt 0:00:20]} Qxf3 {[%emt 0:03:07]} 34. gxf3 {[%emt 0:00:29]} Nf6 {[%emt 0:00:03]} 35. Bd6 {[%emt 0:00:50]} Nh7 {[%emt 0:00:31]} 36. Bb4 {[%emt 0:00:32]} a5 {[%emt 0:00:59]} 37. Be7 {[%emt 0:00:38]} Ra8 {[%emt 0:01:29]} 38. Rg1 {[%emt 0:00:20]} Kc7 {[%emt 0:02:16]} 39. Rxg7 {[%emt 0:00:09]} Kd7 40. Rxh7 {[%emt 0:00:00]} Kxe7 {[%emt 0:00:00]} 41. f8=Q+ {[%emt 0:00:15]} 1-0